[Event "*** Titled Tuesday 3|2 Blitz"]
[Site "Chess.com"]
[Date "2016.09.06"]
[Round "6"]
[White "SavelijTartakover"]
[Black "andretta"]
[Result "1/2-1/2"]
[WhiteElo "2473"]
[BlackElo "2274"]
[TimeControl "180+2"]
[EndTime "12:18:40 PDT"]
[Termination "Game drawn - insufficient material"]

1. d4 {[%clk 0:02:32.3]} 1... d5 {[%clk 0:02:59.9]} 2. c4 {[%clk 0:02:32.8]}
2... dxc4 {[%clk 0:02:56.2]} 3. Nf3 {[%clk 0:02:32.1]} 3... Nf6 {[%clk 0:02:56]}
4. e3 {[%clk 0:02:32.7]} 4... Bg4 {[%clk 0:02:55.2]} 5. Bxc4 {[%clk 0:02:33.3]}
5... e6 {[%clk 0:02:53.2]} 6. O-O {[%clk 0:02:34.1]} 6... Nbd7 {[%clk 0:02:45]}
7. h3 {[%clk 0:02:35]} 7... Bh5 {[%clk 0:02:19.3]} 8. Nc3 {[%clk 0:02:33.4]}
8... Bb4 {[%clk 0:02:16.4]} 9. Be2 {[%clk 0:02:27.4]} 9... c5 {[%clk 0:02:12.8]}
10. a3 {[%clk 0:02:20.6]} 10... Bxc3 {[%clk 0:02:06.9]} 11. bxc3 {[%clk
0:02:19.6]} 11... O-O {[%clk 0:02:08.2]} 12. Bb2 {[%clk 0:02:16.7]} 12... Re8
{[%clk 0:01:57.8]} 13. a4 {[%clk 0:02:15.5]} 13... Qc7 {[%clk 0:01:54.3]} 14. c4
{[%clk 0:02:13.8]} 14... cxd4 {[%clk 0:01:50.9]} 15. exd4 {[%clk 0:02:11.9]}
15... Rad8 {[%clk 0:01:46.1]} 16. Qb3 {[%clk 0:02:10.7]} 16... e5 {[%clk
0:01:37.6]} 17. dxe5 {[%clk 0:02:06.5]} 17... Nxe5 {[%clk 0:01:30.9]} 18. Bxe5
{[%clk 0:01:56.9]} 18... Rxe5 {[%clk 0:01:28]} 19. Nxe5 {[%clk 0:01:56.3]} 19...
Bxe2 {[%clk 0:01:24.2]} 20. Rfe1 {[%clk 0:01:56.4]} 20... Qxe5 {[%clk
0:01:21.2]} 21. Qc2 {[%clk 0:01:46.2]} 21... Bd3 {[%clk 0:01:08.9]} 22. Qd2
{[%clk 0:01:16.7]} 22... Qd4 {[%clk 0:00:53.9]} 23. Rad1 {[%clk 0:01:15.2]}
23... Ne4 {[%clk 0:00:53.7]} 24. Qf4 {[%clk 0:01:00.8]} 24... f5 {[%clk
0:00:49.1]} 25. Qxf5 {[%clk 0:00:35]} 25... Rf8 {[%clk 0:00:48.2]} 26. Qd5+
{[%clk 0:00:32.1]} 26... Qxd5 {[%clk 0:00:44]} 27. cxd5 {[%clk 0:00:33.2]} 27...
Nc5 {[%clk 0:00:43.8]} 28. d6 {[%clk 0:00:22]} 28... b6 {[%clk 0:00:41.9]} 29.
a5 {[%clk 0:00:20.5]} 29... Bf5 {[%clk 0:00:39.4]} 30. axb6 {[%clk 0:00:20.6]}
30... axb6 {[%clk 0:00:40.1]} 31. Re7 {[%clk 0:00:18.1]} 31... Rf7 {[%clk
0:00:35.7]} 32. Rc7 {[%clk 0:00:18.8]} 32... g6 {[%clk 0:00:30.2]} 33. Re1
{[%clk 0:00:16.8]} 33... Bd7 {[%clk 0:00:27.5]} 34. Rb1 {[%clk 0:00:17.3]} 34...
Ne6 {[%clk 0:00:24]} 35. Ra7 {[%clk 0:00:12.7]} 35... b5 {[%clk 0:00:22.5]} 36.
g3 {[%clk 0:00:10.4]} 36... Kg7 {[%clk 0:00:15.8]} 37. f4 {[%clk 0:00:09.7]}
37... Kf6 {[%clk 0:00:14.4]} 38. Kf2 {[%clk 0:00:09.2]} 38... Nc5 {[%clk
0:00:11.7]} 39. Rc7 {[%clk 0:00:07.7]} 39... Ne4+ {[%clk 0:00:09]} 40. Kg2
{[%clk 0:00:08.5]} 40... Nxd6 {[%clk 0:00:10.2]} 41. Rd1 {[%clk 0:00:08.8]}
41... Ke7 {[%clk 0:00:10.7]} 42. Re1+ {[%clk 0:00:08.7]} 42... Kd8 {[%clk
0:00:10.8]} 43. Rc5 {[%clk 0:00:09.8]} 43... Re7 {[%clk 0:00:11.6]} 44. Rd1
{[%clk 0:00:10.1]} 44... Nb7 {[%clk 0:00:12.1]} 45. Rxb5 {[%clk 0:00:10]} 45...
Kc7 {[%clk 0:00:11.1]} 46. Rb2 {[%clk 0:00:09]} 46... Bc6+ {[%clk 0:00:12.1]}
47. Kf2 {[%clk 0:00:10]} 47... Nd6 {[%clk 0:00:12.4]} 48. Kg1 {[%clk 0:00:09.8]}
48... Re3 {[%clk 0:00:12.2]} 49. Kh2 {[%clk 0:00:09.3]} 49... Ne4 {[%clk
0:00:10.7]} 50. Rg2 {[%clk 0:00:08.6]} 50... Nc3 {[%clk 0:00:10.1]} 51. Rc1
{[%clk 0:00:09.3]} 51... Bxg2 {[%clk 0:00:09.9]} 52. Kxg2 {[%clk 0:00:10.5]}
52... Kd6 {[%clk 0:00:11.4]} 53. Ra1 {[%clk 0:00:09.3]} 53... Re7 {[%clk
0:00:11.4]} 54. Ra6+ {[%clk 0:00:09.6]} 54... Kd7 {[%clk 0:00:10.1]} 55. Kf3
{[%clk 0:00:09.8]} 55... Ke8 {[%clk 0:00:09.4]} 56. h4 {[%clk 0:00:09]} 56...
Kf7 {[%clk 0:00:10.5]} 57. h5 {[%clk 0:00:09.6]} 57... Nd5 {[%clk 0:00:10.3]}
58. hxg6+ {[%clk 0:00:09.6]} 58... hxg6 {[%clk 0:00:11.4]} 59. Kg4 {[%clk
0:00:10.3]} 59... Nf6+ {[%clk 0:00:12]} 60. Kg5 {[%clk 0:00:09.3]} 60... Ne4+
{[%clk 0:00:12.8]} 61. Kh6 {[%clk 0:00:08.9]} 61... Nxg3 {[%clk 0:00:12.3]} 62.
Rxg6 {[%clk 0:00:09.9]} 62... Nf5+ {[%clk 0:00:12.9]} 63. Kg5 {[%clk 0:00:11.1]}
63... Ne3 {[%clk 0:00:06.2]} 64. f5 {[%clk 0:00:09.8]} 64... Re5 {[%clk
0:00:05.9]} 65. Rf6+ {[%clk 0:00:10.7]} 65... Ke7 {[%clk 0:00:06.1]} 66. Re6+
{[%clk 0:00:11.9]} 66... Rxe6 {[%clk 0:00:07]} 67. fxe6 {[%clk 0:00:13.1]} 67...
Kxe6 {[%clk 0:00:08.9]} 1/2-1/2

[Event "*** Titled Tuesday 3|2 Blitz"]
[Site "Chess.com"]
[Date "2016.09.06"]
[Round "7"]
[White "ftorodent"]
[Black "OparinGrigoriy"]
[Result "0-1"]
[WhiteElo "2489"]
[BlackElo "2601"]
[TimeControl "180+2"]
[EndTime "12:23:52 PDT"]
[Termination "OparinGrigoriy won by resignation"]

1. d4 {[%clk 0:03:01.9]} 1... Nf6 {[%clk 0:03:00.1]} 2. c4 {[%clk 0:03:02.8]}
2... e6 {[%clk 0:03:01.5]} 3. Nf3 {[%clk 0:03:03.9]} 3... b6 {[%clk 0:03:03]} 4.
g3 {[%clk 0:03:04.9]} 4... Ba6 {[%clk 0:03:04.3]} 5. Qb3 {[%clk 0:03:06]} 5...
Nc6 {[%clk 0:03:03]} 6. Nbd2 {[%clk 0:03:06.9]} 6... Na5 {[%clk 0:03:02.1]} 7.
Qc2 {[%clk 0:03:07.6]} 7... c5 {[%clk 0:03:02.1]} 8. dxc5 {[%clk 0:03:06.4]}
8... bxc5 {[%clk 0:03:02.8]} 9. Bg2 {[%clk 0:03:06.4]} 9... Bb7 {[%clk
0:03:04.1]} 10. O-O {[%clk 0:03:04.4]} 10... Be7 {[%clk 0:03:05.6]} 11. b3
{[%clk 0:03:04.8]} 11... O-O {[%clk 0:03:06.8]} 12. Bb2 {[%clk 0:03:05.9]} 12...
Nc6 {[%clk 0:03:07.4]} 13. Rad1 {[%clk 0:03:03.4]} 13... Qc7 {[%clk 0:03:08.9]}
14. Nb1 {[%clk 0:02:58.8]} 14... d6 {[%clk 0:03:09.6]} 15. Nc3 {[%clk 0:02:59]}
15... a6 {[%clk 0:03:11.2]} 16. Rd2 {[%clk 0:02:57.3]} 16... Rfd8 {[%clk
0:03:12.8]} 17. Rfd1 {[%clk 0:02:58.4]} 17... Rd7 {[%clk 0:03:10.6]} 18. Ng5
{[%clk 0:02:58.3]} 18... h6 {[%clk 0:03:05.9]} 19. Nge4 {[%clk 0:02:57.9]} 19...
Rad8 {[%clk 0:03:06.8]} 20. Nxf6+ {[%clk 0:02:39.5]} 20... Bxf6 {[%clk
0:03:07.9]} 21. Ne4 {[%clk 0:02:41.1]} 21... Bxb2 {[%clk 0:03:05.7]} 22. Qxb2
{[%clk 0:02:42.1]} 22... Nd4 {[%clk 0:03:01.6]} 23. e3 {[%clk 0:02:37.4]} 23...
Nf5 {[%clk 0:02:57.6]} 24. Qc3 {[%clk 0:02:18.8]} 24... Ne7 {[%clk 0:02:56.2]}
25. Qc2 {[%clk 0:02:12.8]} 25... Nc6 {[%clk 0:02:56]} 26. Nc3 {[%clk 0:02:05.7]}
26... Ne5 {[%clk 0:02:55.7]} 27. e4 {[%clk 0:01:32.8]} 27... Nc6 {[%clk
0:02:55.4]} 28. Ne2 {[%clk 0:01:33.6]} 28... e5 {[%clk 0:02:54.9]} 29. f4 {[%clk
0:01:31.5]} 29... Nd4 {[%clk 0:02:56.3]} 30. Nxd4 {[%clk 0:01:32.7]} 30... exd4
{[%clk 0:02:54.6]} 31. Qd3 {[%clk 0:01:31]} 31... Re7 {[%clk 0:02:55.5]} 32. Re1
{[%clk 0:01:32]} 32... Rde8 {[%clk 0:02:57.2]} 33. Rde2 {[%clk 0:01:33.3]} 33...
Qa5 {[%clk 0:02:56.2]} 34. h4 {[%clk 0:01:29.6]} 34... h5 {[%clk 0:02:50.4]} 35.
Kh2 {[%clk 0:01:29.2]} 35... Bc8 {[%clk 0:02:46.2]} 36. Bf3 {[%clk 0:01:29.7]}
36... g6 {[%clk 0:02:45.8]} 37. Rf2 {[%clk 0:01:20.5]} 37... Qxe1 {[%clk
0:02:44.8]} 0-1

[Event "*** Titled Tuesday 3|2 Blitz"]
[Site "Chess.com"]
[Date "2016.09.06"]
[Round "7"]
[White "Colombiano07"]
[Black "hypert"]
[Result "0-1"]
[WhiteElo "2189"]
[BlackElo "2340"]
[TimeControl "180+2"]
[EndTime "12:24:07 PDT"]
[Termination "hypert won by resignation"]

1. Nf3 {[%clk 0:03:01.9]} 1... d5 {[%clk 0:03:00.2]} 2. b3 {[%clk 0:03:03.8]}
2... Nc6 {[%clk 0:02:58.9]} 3. Bb2 {[%clk 0:03:05.7]} 3... Bg4 {[%clk 0:02:59]}
4. e3 {[%clk 0:03:05.8]} 4... e5 {[%clk 0:02:58.4]} 5. h3 {[%clk 0:03:04.4]}
5... Bxf3 {[%clk 0:02:58.7]} 6. Qxf3 {[%clk 0:03:06.3]} 6... Nf6 {[%clk
0:02:58.1]} 7. Nc3 {[%clk 0:03:04.6]} 7... a6 {[%clk 0:02:56]} 8. g4 {[%clk
0:03:04.4]} 8... h6 {[%clk 0:02:56]} 9. Bg2 {[%clk 0:03:04.8]} 9... e4 {[%clk
0:02:54.1]} 10. Qe2 {[%clk 0:03:04.3]} 10... Bd6 {[%clk 0:02:53.4]} 11. O-O-O
{[%clk 0:02:56.1]} 11... Qe7 {[%clk 0:02:51.3]} 12. f3 {[%clk 0:02:54.1]} 12...
O-O-O {[%clk 0:01:16.6]} 13. h4 {[%clk 0:02:46.4]} 13... exf3 {[%clk 0:01:16.3]}
14. Bxf3 {[%clk 0:02:47.1]} 14... Ba3 {[%clk 0:01:07]} 15. g5 {[%clk 0:02:37.4]}
15... Ne4 {[%clk 0:01:04.9]} 16. Bxe4 {[%clk 0:02:31]} 16... Bxb2+ {[%clk
0:01:01.7]} 17. Kxb2 {[%clk 0:02:30.5]} 17... dxe4 {[%clk 0:01:03.6]} 18. Qg4+
{[%clk 0:02:31.2]} 18... Kb8 {[%clk 0:01:04.1]} 19. Qxe4 {[%clk 0:02:31.7]}
19... hxg5 {[%clk 0:01:00.4]} 20. Qxe7 {[%clk 0:02:30.4]} 20... Nxe7 {[%clk
0:01:02.3]} 21. hxg5 {[%clk 0:02:32.3]} 21... Rxh1 {[%clk 0:01:02.2]} 22. Rxh1
{[%clk 0:02:34.2]} 22... Rxd2 {[%clk 0:01:03.4]} 23. Rh8+ {[%clk 0:02:33.2]}
23... Ka7 {[%clk 0:01:04.5]} 24. Rh7 {[%clk 0:02:35.1]} 24... Nf5 {[%clk
0:01:00]} 25. e4 {[%clk 0:02:33.6]} 25... Nd4 {[%clk 0:01:00.8]} 26. Rxg7 {[%clk
0:02:20.7]} 26... Rxc2+ {[%clk 0:01:01.1]} 27. Ka3 {[%clk 0:02:21.6]} 27... Rxc3
{[%clk 0:01:02]} 28. Rxf7 {[%clk 0:02:23]} 28... Rg3 {[%clk 0:01:02.5]} 29. Rxc7
{[%clk 0:02:22]} 29... Nb5+ {[%clk 0:01:03.4]} 0-1

[Event "*** Titled Tuesday 3|2 Blitz"]
[Site "Chess.com"]
[Date "2016.09.06"]
[Round "7"]
[White "SCIM"]
[Black "Ksenia_Legenko"]
[Result "1-0"]
[WhiteElo "2250"]
[BlackElo "2003"]
[TimeControl "180+2"]
[EndTime "12:25:08 PDT"]
[Termination "SCIM won by resignation"]

1. d4 {[%clk 0:03:01.9]} 1... d5 {[%clk 0:02:59.9]} 2. c4 {[%clk 0:03:00.7]}
2... dxc4 {[%clk 0:03:00.5]} 3. e3 {[%clk 0:02:59.6]} 3... Nf6 {[%clk
0:03:00.6]} 4. Bxc4 {[%clk 0:02:58.6]} 4... e6 {[%clk 0:03:01.7]} 5. Nf3 {[%clk
0:02:50.3]} 5... a6 {[%clk 0:03:02.4]} 6. Bb3 {[%clk 0:02:48.4]} 6... b5 {[%clk
0:03:01.4]} 7. a4 {[%clk 0:02:46.6]} 7... b4 {[%clk 0:03:00.9]} 8. e4 {[%clk
0:02:43.7]} 8... Nxe4 {[%clk 0:02:45.6]} 9. O-O {[%clk 0:02:41]} 9... Bb7 {[%clk
0:02:40.3]} 10. Re1 {[%clk 0:02:41.4]} 10... Nf6 {[%clk 0:02:38.1]} 11. Ng5
{[%clk 0:02:34]} 11... Bd5 {[%clk 0:02:28.4]} 12. Nd2 {[%clk 0:02:19.8]} 12...
h6 {[%clk 0:02:27.3]} 13. Nh3 {[%clk 0:02:18.5]} 13... Be7 {[%clk 0:02:26.1]}
14. Nc4 {[%clk 0:02:07.2]} 14... O-O {[%clk 0:02:24.9]} 15. Nf4 {[%clk
0:01:56.8]} 15... Bb7 {[%clk 0:02:15.6]} 16. Ne5 {[%clk 0:01:54.5]} 16... c5
{[%clk 0:02:08.7]} 17. Nxe6 {[%clk 0:01:47.7]} 17... fxe6 {[%clk 0:01:59.4]} 18.
Bxe6+ {[%clk 0:01:47.5]} 18... Kh8 {[%clk 0:01:59.1]} 19. Ng6+ {[%clk
0:01:44.3]} 19... Kh7 {[%clk 0:02:00]} 20. Qc2 {[%clk 0:01:39]} 20... Be4 {[%clk
0:01:35.3]} 21. Rxe4 {[%clk 0:01:28.6]} 21... Re8 {[%clk 0:00:40.4]} 22. Rh4
{[%clk 0:01:19.2]} 22... cxd4 {[%clk 0:00:37.8]} 23. Nf8+ {[%clk 0:01:18.5]}
23... Kh8 {[%clk 0:00:38.1]} 24. Qh7+ {[%clk 0:01:18.2]} 1-0

[Event "*** Titled Tuesday 3|2 Blitz"]
[Site "Chess.com"]
[Date "2016.09.06"]
[Round "7"]
[White "biostatistician"]
[Black "roldieyi"]
[Result "1-0"]
[WhiteElo "2370"]
[BlackElo "2222"]
[TimeControl "180+2"]
[EndTime "12:26:04 PDT"]
[Termination "biostatistician won by resignation"]

1. d4 {[%clk 0:03:01.9]} 1... Nf6 {[%clk 0:03:00.8]} 2. Nf3 {[%clk 0:03:03.8]}
2... e6 {[%clk 0:03:02.7]} 3. c4 {[%clk 0:03:05.2]} 3... d5 {[%clk 0:03:04.6]}
4. Nc3 {[%clk 0:03:06.4]} 4... Be7 {[%clk 0:03:05.6]} 5. Bg5 {[%clk 0:03:07.9]}
5... O-O {[%clk 0:03:05.4]} 6. e3 {[%clk 0:03:08.9]} 6... b6 {[%clk 0:03:06.5]}
7. Be2 {[%clk 0:03:08.1]} 7... Nbd7 {[%clk 0:03:07.5]} 8. cxd5 {[%clk 0:03:06]}
8... exd5 {[%clk 0:03:07.7]} 9. O-O {[%clk 0:03:04.4]} 9... Bb7 {[%clk
0:03:09.1]} 10. Rc1 {[%clk 0:02:59.5]} 10... a6 {[%clk 0:03:09.9]} 11. Qb3
{[%clk 0:02:51.4]} 11... c5 {[%clk 0:03:09.3]} 12. dxc5 {[%clk 0:02:51.5]} 12...
Nxc5 {[%clk 0:03:09.4]} 13. Qc2 {[%clk 0:02:52.1]} 13... Rc8 {[%clk 0:03:08.5]}
14. Qf5 {[%clk 0:02:35.7]} 14... Ne6 {[%clk 0:03:05.4]} 15. Bh4 {[%clk
0:02:30.5]} 15... b5 {[%clk 0:03:02.4]} 16. Rfd1 {[%clk 0:02:30.1]} 16... b4
{[%clk 0:03:00.6]} 17. Na4 {[%clk 0:02:29.6]} 17... Rxc1 {[%clk 0:03:00.6]} 18.
Rxc1 {[%clk 0:02:31.5]} 18... Bc8 {[%clk 0:03:00.7]} 19. Qd3 {[%clk 0:02:24.7]}
19... Bb7 {[%clk 0:02:39.9]} 20. Nd4 {[%clk 0:02:19.9]} 20... Nxd4 {[%clk
0:02:38.9]} 21. Qxd4 {[%clk 0:02:21.8]} 21... Ne4 {[%clk 0:02:33.7]} 22. Bxe7
{[%clk 0:02:19]} 22... Qxe7 {[%clk 0:02:34.6]} 23. Bf3 {[%clk 0:02:16.8]} 23...
Re8 {[%clk 0:02:03]} 24. h3 {[%clk 0:02:13.6]} 24... h6 {[%clk 0:01:59.3]} 25.
Nc5 {[%clk 0:02:08.4]} 25... Nxc5 {[%clk 0:01:58.5]} 26. Qxc5 {[%clk 0:01:52.7]}
26... Qxc5 {[%clk 0:01:29.9]} 27. Rxc5 {[%clk 0:01:54.6]} 27... Rd8 {[%clk
0:01:30.2]} 28. Kf1 {[%clk 0:01:50.4]} 28... Kf8 {[%clk 0:01:29.7]} 29. Ke2
{[%clk 0:01:50.6]} 29... Rd7 {[%clk 0:01:30.2]} 30. Kd3 {[%clk 0:01:49.5]} 30...
Ke7 {[%clk 0:01:30.6]} 31. Kd4 {[%clk 0:01:49.8]} 31... Kd6 {[%clk 0:01:29.8]}
32. Bxd5 {[%clk 0:01:45.5]} 32... Ke7 {[%clk 0:01:29.9]} 33. e4 {[%clk
0:01:46.1]} 33... f5 {[%clk 0:01:30.6]} 34. exf5 {[%clk 0:01:31.5]} 34... Kf6
{[%clk 0:01:26.4]} 35. g4 {[%clk 0:01:31.8]} 35... h5 {[%clk 0:01:27.4]} 36. f4
{[%clk 0:01:31]} 36... hxg4 {[%clk 0:01:25.3]} 37. hxg4 {[%clk 0:01:32.9]} 37...
Rd8 {[%clk 0:01:14.9]} 38. Kc4 {[%clk 0:01:26.8]} 38... Bxd5+ {[%clk 0:01:15.2]}
39. Rxd5 {[%clk 0:01:28.7]} 39... Rc8+ {[%clk 0:01:16.6]} 40. Kxb4 {[%clk
0:01:29.8]} 40... Rb8+ {[%clk 0:01:18.1]} 41. Kc3 {[%clk 0:01:29.6]} 41... Rc8+
{[%clk 0:01:18.5]} 42. Kd3 {[%clk 0:01:29.8]} 42... Rc1 {[%clk 0:01:19.1]} 43.
Rd6+ {[%clk 0:01:30.5]} 43... Kf7 {[%clk 0:01:19.6]} 44. Rxa6 {[%clk 0:01:32.4]}
1-0

[Event "*** Titled Tuesday 3|2 Blitz"]
[Site "Chess.com"]
[Date "2016.09.06"]
[Round "7"]
[White "severomorskij"]
[Black "E-Shaposhnikov"]
[Result "0-1"]
[WhiteElo "2611"]
[BlackElo "2666"]
[TimeControl "180+2"]
[EndTime "12:27:28 PDT"]
[Termination "E-Shaposhnikov won by resignation"]

1. d4 {[%clk 0:03:01.9]} 1... Nf6 {[%clk 0:03:00.7]} 2. c4 {[%clk 0:03:02.7]}
2... e6 {[%clk 0:03:01.3]} 3. Nf3 {[%clk 0:03:03.7]} 3... b6 {[%clk 0:03:02.1]}
4. g3 {[%clk 0:03:03.5]} 4... Ba6 {[%clk 0:03:03.1]} 5. Qb3 {[%clk 0:03:03.7]}
5... Nc6 {[%clk 0:03:00.6]} 6. Nbd2 {[%clk 0:02:59.4]} 6... Na5 {[%clk
0:02:57.1]} 7. Qa4 {[%clk 0:02:59.2]} 7... c5 {[%clk 0:02:54.7]} 8. dxc5 {[%clk
0:02:58.8]} 8... bxc5 {[%clk 0:02:55.8]} 9. Bg2 {[%clk 0:02:59.9]} 9... Bb7
{[%clk 0:02:53.3]} 10. O-O {[%clk 0:03:00.8]} 10... Be7 {[%clk 0:02:49.4]} 11.
Ne5 {[%clk 0:02:57.6]} 11... Qc7 {[%clk 0:02:46.5]} 12. Bxb7 {[%clk 0:02:51.5]}
12... Nxb7 {[%clk 0:02:48.4]} 13. Ndf3 {[%clk 0:02:49.5]} 13... O-O {[%clk
0:02:40.4]} 14. Bg5 {[%clk 0:02:49.6]} 14... Rfd8 {[%clk 0:02:26.8]} 15. Rfd1
{[%clk 0:02:47.7]} 15... Nd6 {[%clk 0:02:27.6]} 16. Rd3 {[%clk 0:02:19.2]} 16...
Nde4 {[%clk 0:02:20.9]} 17. Bf4 {[%clk 0:02:08.6]} 17... d6 {[%clk 0:02:14.4]}
18. Nc6 {[%clk 0:02:00]} 18... Rdc8 {[%clk 0:02:15]} 19. Nxe7+ {[%clk
0:02:00.4]} 19... Qxe7 {[%clk 0:02:16.9]} 20. Rad1 {[%clk 0:01:45.7]} 20... e5
{[%clk 0:02:16.9]} 21. Bg5 {[%clk 0:01:44]} 21... Nxg5 {[%clk 0:02:11.8]} 22.
Nxg5 {[%clk 0:01:44.9]} 22... h6 {[%clk 0:02:13.7]} 23. Nh3 {[%clk 0:01:41.3]}
23... Rab8 {[%clk 0:02:14.1]} 24. Qc2 {[%clk 0:01:26.4]} 24... Qd7 {[%clk
0:02:02.9]} 25. g4 {[%clk 0:01:06.8]} 25... Qxg4+ {[%clk 0:01:46.8]} 26. Rg3
{[%clk 0:01:07.2]} 26... Qe6 {[%clk 0:01:48.4]} 27. Kh1 {[%clk 0:00:51.4]} 27...
d5 {[%clk 0:01:46.1]} 28. cxd5 {[%clk 0:00:47]} 28... Nxd5 {[%clk 0:01:46.5]}
29. Rdg1 {[%clk 0:00:47.8]} 29... Nf6 {[%clk 0:01:23.4]} 30. Rxg7+ {[%clk
0:00:45.6]} 30... Kf8 {[%clk 0:01:24.7]} 31. Qd2 {[%clk 0:00:29.2]} 31... Ke7
{[%clk 0:01:25.3]} 32. Qe3 {[%clk 0:00:17.9]} 32... Rxb2 {[%clk 0:01:25.6]} 33.
Qxh6 {[%clk 0:00:14]} 33... Rxe2 {[%clk 0:01:21.3]} 34. Ng5 {[%clk 0:00:13.2]}
34... Qd5+ {[%clk 0:01:18.1]} 35. f3 {[%clk 0:00:14]} 35... Rf8 {[%clk
0:01:14.5]} 36. Qh4 {[%clk 0:00:14]} 36... c4 {[%clk 0:01:00.6]} 37. Ne4 {[%clk
0:00:07.5]} 37... Rxe4 {[%clk 0:01:01.2]} 38. fxe4 {[%clk 0:00:08.7]} 38...
Qxe4+ {[%clk 0:01:02.9]} 39. Qxe4 {[%clk 0:00:09.8]} 39... Nxe4 {[%clk
0:01:04.8]} 40. Re1 {[%clk 0:00:10.8]} 40... Nf2+ {[%clk 0:01:00]} 41. Kg2
{[%clk 0:00:09.4]} 41... Nd3 {[%clk 0:01:01.9]} 42. Re4 {[%clk 0:00:09.9]} 42...
c3 {[%clk 0:00:59.3]} 43. Rc4 {[%clk 0:00:10.4]} 43... c2 {[%clk 0:01:00.5]} 44.
Kf3 {[%clk 0:00:04.9]} 44... c1=Q {[%clk 0:00:59.6]} 45. Rxc1 {[%clk 0:00:05.8]}
45... Nxc1 {[%clk 0:01:01.5]} 46. Ke4 {[%clk 0:00:07.2]} 0-1

[Event "*** Titled Tuesday 3|2 Blitz"]
[Site "Chess.com"]
[Date "2016.09.06"]
[Round "7"]
[White "Haykos"]
[Black "alturas_pacificas"]
[Result "1-0"]
[WhiteElo "2251"]
[BlackElo "2144"]
[TimeControl "180+2"]
[EndTime "12:27:31 PDT"]
[Termination "Haykos won by checkmate"]

1. e4 {[%clk 0:03:00.3]} 1... g6 {[%clk 0:03:00]} 2. d4 {[%clk 0:02:59.5]} 2...
Bg7 {[%clk 0:03:00.5]} 3. Nc3 {[%clk 0:03:00.5]} 3... d6 {[%clk 0:03:01.4]} 4.
Nf3 {[%clk 0:02:59.4]} 4... a6 {[%clk 0:02:58]} 5. a4 {[%clk 0:02:59.5]} 5... b6
{[%clk 0:02:57.1]} 6. Be3 {[%clk 0:02:57.2]} 6... Bb7 {[%clk 0:02:57.7]} 7. Bc4
{[%clk 0:02:58]} 7... e6 {[%clk 0:02:55.4]} 8. Qd2 {[%clk 0:02:55.1]} 8... Nd7
{[%clk 0:02:54.4]} 9. Ng5 {[%clk 0:02:24.3]} 9... Qe7 {[%clk 0:02:38.3]} 10. f3
{[%clk 0:02:19.8]} 10... h6 {[%clk 0:02:32.8]} 11. Nh3 {[%clk 0:02:20.6]} 11...
Rc8 {[%clk 0:02:26.2]} 12. Qe2 {[%clk 0:02:17.5]} 12... a5 {[%clk 0:02:19]} 13.
Qd2 {[%clk 0:02:18.2]} 13... Ngf6 {[%clk 0:02:14.1]} 14. O-O {[%clk 0:02:18.3]}
14... d5 {[%clk 0:01:52]} 15. Bd3 {[%clk 0:00:58.4]} 15... dxe4 {[%clk
0:01:53.1]} 16. fxe4 {[%clk 0:00:58.2]} 16... c5 {[%clk 0:01:41.7]} 17. e5
{[%clk 0:00:31.7]} 17... Ng4 {[%clk 0:01:39.7]} 18. Nb5 {[%clk 0:00:31.3]} 18...
O-O {[%clk 0:01:26.2]} 19. c3 {[%clk 0:00:29.9]} 19... Rcd8 {[%clk 0:01:10.6]}
20. Nd6 {[%clk 0:00:28.7]} 20... Bc6 {[%clk 0:00:54.7]} 21. Rf4 {[%clk
0:00:20.9]} 21... Nxe3 {[%clk 0:00:53.9]} 22. Qxe3 {[%clk 0:00:22.8]} 22... cxd4
{[%clk 0:00:52.2]} 23. cxd4 {[%clk 0:00:23.5]} 23... f5 {[%clk 0:00:46.5]} 24.
Rf2 {[%clk 0:00:21.8]} 24... g5 {[%clk 0:00:22.8]} 25. Rc2 {[%clk 0:00:22.3]}
25... Bd5 {[%clk 0:00:23]} 26. Rc7 {[%clk 0:00:22.9]} 26... Rf7 {[%clk
0:00:15.5]} 27. Rac1 {[%clk 0:00:21.5]} 27... Kh7 {[%clk 0:00:14.8]} 28. Bb5
{[%clk 0:00:22.3]} 28... Rff8 {[%clk 0:00:12.2]} 29. Ra7 {[%clk 0:00:22.4]}
29... Kg6 {[%clk 0:00:06.8]} 30. Rcc7 {[%clk 0:00:23]} 30... f4 {[%clk
0:00:05.1]} 31. Qd3+ {[%clk 0:00:23.1]} 31... Kh5 {[%clk 0:00:06.8]} 32. Rxd7
{[%clk 0:00:22.5]} 32... Rxd7 {[%clk 0:00:08.2]} 33. Rxd7 {[%clk 0:00:24.4]}
33... Re8 {[%clk 0:00:09.1]} 34. Rxe7 {[%clk 0:00:23.9]} 34... Rxe7 {[%clk
0:00:11]} 35. Be8+ {[%clk 0:00:24.3]} 35... Kg4 {[%clk 0:00:11.3]} 36. Nf2+
{[%clk 0:00:25.2]} 36... Kh4 {[%clk 0:00:10.7]} 37. g3+ {[%clk 0:00:25.4]} 37...
fxg3 {[%clk 0:00:09.5]} 38. hxg3# {[%clk 0:00:27.3]} 1-0